[Event "44th Chess Olympiad Women 2022"]
[Site "Chennai"]
[Date "2022.08.01"]
[Round "4.5"]
[White "Gajcin, Marina"]
[Black "Navrotescu, Andreea"]
[Result "0-1"]
[WhiteElo "2271"]
[BlackElo "2373"]
[Annotator "TA"]
[PlyCount "132"]
[EventDate "2022.??.??"]
[TimeControl "60"]

{[%evp 13,132,39,47,28,20,0,0,-14,0,-36,-46,-38,-22,-64,-43,-67,-9,0,-11,-23,
-22,-26,-20,-18,-15,-21,-29,-99,-18,-22,-31,-49,-50,-93,-84,-87,-8,-81,56,-40,
-25,-27,-29,-153,-120,-120,-120,-120,-118,-233,-238,-237,-238,-227,-217,-200,
-138,-143,-89,-90,-145,-291,-267,-282,-275,-295,-284,-277,-241,-237,-230,-316,
-310,-293,-287,-276,-280,-255,-275,-587,-561,-29979,-29980,-29980,-29981,-2689,
-2601,-2310,-2394,-1783,-2334,-2105,-2167,-1303,-2053,-1689,-1631,-1663,-1453,
-1352,-1170,-29975,-29976,-29977,-29971,-29979,-29980,-29980,-29981,-29979,
-29981,-29981,-29982,-29982,-29983,-29986,-29987,-29989,-29990,-29992,-29993]} 
1. e4 {[%emt 0:00:06]} e5 {[%emt 0:00:04]} 2. Nf3 {[%emt 0:00:06]} Nc6 {
[%emt 0:00:04]} 3. Bc4 {[%emt 0:00:05]} Bc5 {[%emt 0:00:06]} 4. c3 {[%emt 0:00:
00]} Nf6 {[%emt 0:00:17]} 5. d3 {[%emt 0:00:05]} O-O {[%emt 0:00:13]} 6. O-O {
[%emt 0:04:13]} d5 {[%emt 0:00:11]} 7. exd5 {[%emt 0:00:26]} Nxd5 {[%emt 0:00:
00]} 8. Nbd2 {[%emt 0:07:45] C54: Giuoco Piano: 4 c3 Nf6, main lines with 5 d4
and 5 d3.} Nb6 {[%emt 0:04:11]} 9. b4 {[%emt 0:15:45]} Be7 {[%emt 0:02:59]} 10.
Re1 {[%emt 0:19:26] The position is equal.} Bf6 {[%emt 0:06:42] [#]} 11. Ne4
$146 {[%emt 0:14:06]} ({Predecessor:} 11. a4 Bf5 12. Bb5 Bxd3 13. Bxc6 bxc6 14.
Nxe5 Bf5 15. Ndf3 Bxe5 16. Nxe5 Qf6 17. Bf4 {1-0 (58) Malicka,M (2307)-Kolaric,
S (2185) Warsaw 2021}) 11... Nxc4 {[%emt 0:00:53]} 12. dxc4 {[%emt 0:00:15]}
Bg4 {[%emt 0:06:11]} 13. Be3 {[%emt 0:07:51]} Qxd1 {[%emt 0:07:49]} 14. Raxd1 {
[%emt 0:00:04]} b6 {[%emt 0:03:33]} (14... Be7 $15) 15. h3 $11 {[%emt 0:02:18]}
Be6 {[%emt 0:09:49]} 16. Nxf6+ {[%emt 0:04:01]} gxf6 {[%emt 0:00:03]} 17. Bh6 {
[%emt 0:03:05]} Rfd8 {[%emt 0:02:53]} 18. Nd2 {[%emt 0:00:22]} Kh8 {[%emt 0:00:
00]} 19. Ne4 {[%emt 0:04:31]} Rg8 {[%emt 0:02:14]} 20. Kh2 {[%emt 0:04:38]} ({
Of course not} 20. Nxf6 Rg6 21. Nd5 Rxh6 $17) (20. Bc1 $11 {keeps the balance.}
) 20... Rg6 {[%emt 0:01:45]} ({Black should play} 20... f5 $1 $17 {aiming for .
..Rg6.} 21. Ng5 Bxc4) 21. Bc1 $1 {[%emt 0:00:14]} Bxc4 {[%emt 0:01:40]} 22. Rd7
{[%emt 0:00:17]} Rc8 $36 {[%emt 0:01:03] Black is more active.} ({But not} 
22... Bxa2 23. Rxc7 f5 24. Ng5 $11) 23. b5 {[%emt 0:01:34]} Nb8 {[%emt 0:05:00]
} 24. Re7 {[%emt 0:00:04]} Bxa2 {[%emt 0:02:18]} ({Black should try} 24... Bxb5
$17 {Strongly threatening ...Bc4.} 25. f4 f5 26. Rxe5 Bd7) 25. h4 {[%emt 0:00:
44] [#]} (25. g4 $11) 25... h5 {[%emt 0:02:37]} (25... f5 $1 $17 {[%cal Rf5e4]}
26. Nd2 (26. Ng5 $2 f6 $17) 26... f6) 26. f4 {[%emt 0:02:44]} (26. g4 $1 $14
Rxg4 27. Nxf6 Rxh4+ 28. Kg3) 26... f5 $15 {[%emt 0:10:27]} 27. Ng5 {[%emt 0:00:
04]} f6 {[%emt 0:00:14]} 28. Ne6 {[%emt 0:03:46] [#]} (28. Nf3 $1 $11 {was the
only way to keep the balance.} Rcg8 29. Re2) 28... Nd7 $1 {[%emt 0:10:19]} 29.
Rxd7 {[%emt 0:00:39]} Bxe6 {[%emt 0:00:08]} 30. Re7 {[%emt 0:00:06]} Bd5 {
[%emt 0:00:24]} 31. Re2 {[%emt 0:01:28]} (31. g3 $17 {was called for.}) 31...
Rcg8 $19 {[%emt 0:03:14][%cal Rg6g2]} 32. fxe5 {[%emt 0:00:24]} Rxg2+ {[%emt 0:
07:40]} 33. Rxg2 {[%emt 0:00:00]} Rxg2+ {[%emt 0:00:08] Endgame KRB-KRB} 34.
Kh3 {[%emt 0:00:02]} Rc2 {[%emt 0:00:30][%csl Yc1,Yc3]} 35. Bh6 {[%emt 0:01:25]
[#]} Rxc3+ {[%emt 0:00:00]} (35... fxe5 $142 $1 {And now ...Re2 would win.} 36.
Bg7+ Kg8 37. Bxe5 Re2) 36. Kh2 $17 {[%emt 0:00:00]} fxe5 {[%emt 0:00:43]} (
36... Rc2+ $142 37. Kg3 Rc3+ 38. Kf2 fxe5 39. Bg7+ Kg8 40. Bxe5 Rf3+ 41. Ke2
Rh3 42. Rg7+ Kf8 43. Rxc7 Rxh4 44. Bd6+ Kg8 45. Rxa7 Rc4) 37. Bg7+ {[%emt 0:00:
25] White does not recover from this.} (37. Rxe5 $17 Kh7 38. Bf4 Rc2+ 39. Kg3)
37... Kg8 $19 {[%emt 0:00:01]} 38. Bxe5 {[%emt 0:00:19]} Re3 {[%emt 0:01:22]}
39. Rg7+ {[%emt 0:00:13]} Kf8 {[%emt 0:00:11]} 40. Bf6 {[%emt 0:01:36]} Re6 {
[%emt 0:00:00]} 41. Bc3 {[%emt 0:08:40]} f4 {[%emt 0:03:47][%cal Yf5f4,Yf4f3]}
42. Rxc7 {[%emt 0:06:19]} Re2+ {[%emt 0:01:12]} 43. Kg1 {[%emt 0:00:09]} f3 {
[%emt 0:00:20]} 44. Bd4 {[%emt 0:04:05]} Re4 {[%emt 0:06:40][%csl Yd4,Yh4]} 45.
Bf2 {[%emt 0:09:53]} Rg4+ {[%emt 0:00:14]} 46. Kh1 $2 {[%emt 0:00:22]} (46. Kf1
) 46... Rg2 {[%emt 0:01:26]} 47. Rc2 {[%emt 0:03:18]} Kf7 {[%emt 0:00:30]} 48.
Rd2 {[%emt 0:00:33]} Ke6 {[%emt 0:00:12]} 49. Rc2 {[%emt 0:00:57]} Kf5 {
[%emt 0:01:27]} 50. Rd2 {[%emt 0:00:19]} Bc4 {[%emt 0:00:39]} 51. Rd4 {[%emt 0:
00:00]} Rxf2 {[%emt 0:01:57]} 52. Rxc4 {[%emt 0:00:07] KR-KR} Rb2 {[%emt 0:00:
00]} 53. Kg1 {[%emt 0:00:29]} Rxb5 {[%emt 0:00:14]} 54. Kf2 {[%emt 0:00:04]}
Rb3 {[%emt 0:00:18] ...a5 is the strong threat.} 55. Kg3 {[%emt 0:00:25]} a5 {
[%emt 0:00:20][%cal Ya7a5,Ya5a4,Ya4a3] Threatens to win with ...b5.} 56. Rf4+ {
[%emt 0:00:13]} Ke5 {[%emt 0:00:54][%cal Yf3f2] ( -> ...f2+!)} 57. Rf8 {
[%emt 0:00:17]} a4 {[%emt 0:00:26] Black mates.} 58. Rh8 {[%emt 0:00:18]} a3 {
[%emt 0:00:07]} 59. Rxh5+ {[%emt 0:00:04]} Ke4 {[%emt 0:00:05]} 60. Rh8 {
[%emt 0:00:51]} Rb5 {[%emt 0:00:30]} 61. Re8+ {[%emt 0:02:10]} Re5 {[%emt 0:00:
00]} 62. Ra8 {[%emt 0:00:46]} Ra5 {[%emt 0:00:01]} 63. Re8+ {[%emt 0:00:04]}
Kd3 {[%emt 0:00:26]} 64. Re1 {[%emt 0:00:45]} a2 {[%emt 0:00:11]} 65. Ra1 {
[%emt 0:00:03]} Ke2 {[%emt 0:00:10]} 66. h5 {[%emt 0:01:13]} f2 {[%emt 0:00:20]
Weighted Error Value: White=0.53/Black=0.19 (very precise)} 0-1

[Event "44th Chess Olympiad Women 2022"]
[Site "Chennai"]
[Date "2022.08.01"]
[Round "4.5"]
[White "Milliet, Sophie"]
[Black "Eric, Jovana"]
[Result "1-0"]
[WhiteElo "2396"]
[BlackElo "2271"]
[Annotator "TA"]
[PlyCount "89"]
[EventDate "2022.??.??"]
[TimeControl "60"]

{[%evp 13,89,0,0,0,33,28,32,3,29,0,0,0,0,8,37,45,69,58,74,57,62,53,64,66,93,82,
62,48,55,68,92,61,71,37,143,118,325,320,335,314,333,329,320,332,377,336,450,
380,363,393,398,368,357,372,372,383,446,-959,425,400,412,341,1505,1486,1451,
1444,1825,645,1115,1031,1718,1711,1477,1278,1759,1089,29980,29979]} 1. e4 {
[%emt 0:00:03]} c5 {[%emt 0:00:05]} 2. Nf3 {[%emt 0:00:05]} d6 {[%emt 0:00:05]}
3. d4 {[%emt 0:00:09]} cxd4 {[%emt 0:00:06]} 4. Nxd4 {[%emt 0:00:04]} Nf6 {
[%emt 0:00:13]} 5. Nc3 {[%emt 0:00:04]} a6 {[%emt 0:00:10]} 6. Be3 {[%emt 0:00:
00]} e6 {[%emt 0:00:25]} 7. f3 {[%emt 0:13:58]} b5 {[%emt 0:07:01]} 8. a3 {
[%emt 0:00:48] B80: Sicilian Scheveningen: 6 g3 and 6 Be3, including English
Attack.} Nbd7 {[%emt 0:02:56]} 9. g4 {[%emt 0:03:17]} Nb6 {[%emt 0:01:58]} 10.
Qd2 {[%emt 0:05:32] White is slightly better.} Bb7 {[%emt 0:03:39]} 11. O-O-O {
[%emt 0:05:34]} Rc8 {[%emt 0:06:20]} 12. h4 {[%emt 0:02:14]} Nfd7 {[%emt 0:00:
00]} 13. Rh3 {[%emt 0:02:31]} Ne5 {[%emt 0:03:05]} 14. Qe1 {[%emt 0:23:50]}
Nbc4 {[%emt 0:05:09]} 15. Bg1 {[%emt 0:00:27] [#]} Qa5 $146 {[%emt 0:09:36]} ({
Predecessor:} 15... Be7 16. g5 Ng6 17. Bxc4 Rxc4 18. Be3 Qc8 19. Nde2 O-O 20.
h5 Ne5 21. b3 b4 22. bxc4 Nxc4 23. axb4 Nxe3 {½-½ (41) Fric,L (2235)
-Laghetti,G (2346) FICGS email 2010}) 16. Nb3 {[%emt 0:05:23]} Qc7 {[%emt 0:00:
00][%cal Yc4a3]} 17. Bd4 {[%emt 0:07:22]} Nc6 {[%emt 0:03:31]} 18. f4 $1 {
[%emt 0:03:25][%cal Yf3f4,Yf4f5,Yf5f6,Yf6g7]} Nxd4 {[%emt 0:00:41]} 19. Nxd4 {
[%emt 0:00:11]} Be7 {[%emt 0:04:11]} 20. f5 {[%emt 0:01:26]} e5 {[%emt 0:05:20]
} 21. Nb3 {[%emt 0:00:09]} O-O {[%emt 0:04:39]} 22. g5 {[%emt 0:00:00]} Rfd8 {
[%emt 0:11:07]} 23. f6 {[%emt 0:02:13]} Bf8 {[%emt 0:03:02]} (23... gxf6 $14
24. gxf6 Bxf6) 24. fxg7 {[%emt 0:08:02] White is more active.} Be7 {[%emt 0:00:
29]} (24... Bxg7 $16 25. Kb1 Qb6) 25. Rhd3 $18 {[%emt 0:00:57]} (25. Bxc4 bxc4
26. Nd2 (26. Nd5 $2 Bxd5 27. Nd4 exd4 $19) 26... d5 $16) 25... b4 {[%emt 0:07:
55]} 26. axb4 {[%emt 0:00:17]} d5 {[%emt 0:00:29]} 27. exd5 {[%emt 0:10:27]}
Bxb4 {[%emt 0:00:05]} 28. Bh3 {[%emt 0:01:39]} Rb8 {[%emt 0:00:00]} 29. h5 {
[%emt 0:02:44][%cal Yg5g6,Yh4h5,Yh5h6]} Qe7 {[%emt 0:00:00]} 30. Qh4 {[%emt 0:
00:47]} Bxc3 {[%emt 0:01:39]} 31. Rxc3 {[%emt 0:00:23] Dancing on a razor
blade.} (31. Qxc4 Bd4 $18) 31... Nb6 {[%emt 0:01:09]} 32. h6 {[%emt 0:01:02]}
Nxd5 {[%emt 0:00:22]} 33. Rcd3 {[%emt 0:00:44]} e4 {[%emt 0:00:00]} 34. Rd4 {
[%emt 0:00:16] Black must now prevent Bf5.} e3 {[%emt 0:01:06]} 35. Re4 {
[%emt 0:00:54] [#] Against Qe5} (35. g6 $18 Qxh4 36. gxf7+ (36. Rxh4 hxg6 37.
Rhd4 Kh7 $16) 36... Kxf7 37. Rxh4) 35... Qc7 $4 {[%emt 0:00:26] [#]} (35... Nc3
$1 $19 {[%csl Gc3][%cal Rd8d1] and all is fine.} 36. Red4 Ne2+ 37. Kb1 Nxd4 38.
Rxd4 e2) 36. Bf5 $1 {[%emt 0:00:37]} Re8 {[%emt 0:00:36]} 37. Re1 {[%emt 0:00:
31]} Nb6 $2 {[%emt 0:00:00]} (37... Rbd8 38. Rd4 Re5) 38. R4xe3 {[%emt 0:00:18]
} Rxe3 {[%emt 0:00:00]} 39. Rxe3 {[%emt 0:00:00][%cal Yb3c5] Hoping for Nc5!}
Nc4 {[%emt 0:00:44] [#]} 40. Rc3 {[%emt 0:01:06]} (40. Bxh7+ $142 $1 Kxh7 41.
g6+ fxg6 42. Re7 Qxe7 43. Qxe7) 40... Qe5 {[%emt 0:00:34]} 41. Rxc4 {[%emt 0:
08:31][%cal Yc3c4,Yc4f4,Yf4d4]} Qxf5 {[%emt 0:24:10]} 42. Qf4 {[%emt 0:00:00]}
Qxf4+ {[%emt 0:01:28]} 43. Rxf4 {[%emt 0:00:03] And now Rb4 would win.} Bd5 {
[%emt 0:01:21]} 44. Nc5 {[%emt 0:00:37] White wants to mate with Nd7.} Rd8 {
[%emt 0:01:26] Inhibits Nd7.} 45. Rd4 {[%emt 0:00:49] Weighted Error Value:
White=0.45/Black=0.65} 1-0

[Event "44th Chess Olympiad Women 2022"]
[Site "Chennai"]
[Date "2022.08.01"]
[Round "4.5"]
[White "Sebag, Marie"]
[Black "Injac, Teodora"]
[Result "0-1"]
[WhiteElo "2447"]
[BlackElo "2372"]
[Annotator "TA"]
[PlyCount "112"]
[EventDate "2022.??.??"]
[TimeControl "60"]

{[%evp 22,112,9,9,10,4,4,8,10,14,44,16,21,0,15,0,-10,-40,0,-7,11,-33,-19,-30,
-23,-25,0,0,0,0,23,16,31,11,29,-161,-170,-178,-145,-164,-147,-162,-85,-113,
-105,-110,-93,-93,-93,-115,-93,-91,-79,-81,-93,-93,-93,-125,-89,-81,-81,-81,
-82,-82,-82,-99,-76,-125,-125,-125,-125,-125,-125,-133,-79,-79,-43,-43,-43,
-1976,-1778,-1939,-1685,-5694,-10400,-12836,-12836,-12836,-12830,-12837,-12837,
-6620,-1604]} 1. e4 {[%emt 0:00:03]} e5 {[%emt 0:00:10]} 2. Nf3 {[%emt 0:00:08]
} Nc6 {[%emt 0:00:07]} 3. Bb5 {[%emt 0:00:09][%cal Yf1b5,Yb5a4,Ya4b3]} a6 {
[%emt 0:00:30]} 4. Ba4 {[%emt 0:00:05]} Nf6 {[%emt 0:00:06]} 5. O-O {[%emt 0:
00:05]} Be7 {[%emt 0:00:55]} 6. Re1 {[%emt 0:01:18]} b5 {[%emt 0:00:14]} 7. Bb3
{[%emt 0:00:07]} O-O {[%emt 0:00:23]} 8. a4 {[%emt 0:00:23]} Bb7 {[%emt 0:00:
33]} 9. d3 {[%emt 0:03:06]} d6 {[%emt 0:00:23]} 10. c3 {[%emt 0:00:00]} Na5 {
[%emt 0:00:44]} 11. Bc2 {[%emt 0:00:37]} (11. Ba2 c5 12. Nbd2 Qc7 13. Nf1 c4
14. Bg5 Rfd8 15. axb5 axb5 16. Bxf6 Bxf6 17. Ne3 Ra6 18. dxc4 bxc4 19. Nd2 Bg5
20. Bxc4 Nxc4 21. Nexc4 {½-½ (44) Sebag,M (2447)-Injac,T (2387) Terme Catez
2021}) 11... c5 {[%emt 0:00:25]} 12. Nbd2 {[%emt 0:01:22]} Re8 {[%emt 0:01:10]
C88: Closed Ruy Lopez: Anti-Marshall Systems.} 13. Nf1 {[%emt 0:00:00]} b4 {
[%emt 0:01:35] [#]} 14. Bg5 $146 {[%emt 0:17:04][%cal Yc1g5,Yg5h4,Yh4g3]} ({
Predecessor:} 14. Ne3 Bf8 15. Nf5 d5 16. exd5 Qxd5 17. Bg5 b3 18. Bb1 e4 19.
Ne3 Qd6 20. Nd2 exd3 21. Nxb3 Nxb3 22. Qxb3 Ng4 {0-1 (22) Smirin,I (2599)
-Kosteniuk,A (2513) Chess.com INT 2022}) 14... h6 {[%emt 0:00:00] The position
is equal.} 15. Bh4 {[%emt 0:00:59]} Qc7 {[%emt 0:52:24]} 16. h3 {[%emt 0:14:35]
} d5 {[%emt 0:04:10]} 17. Bg3 {[%emt 0:10:50]} (17. Ne3 $5 {[%cal Rh4f6]})
17... dxe4 {[%emt 0:04:29]} 18. dxe4 {[%emt 0:03:48]} Bf8 {[%emt 0:01:37]} 19.
N3d2 {[%emt 0:03:50]} g6 {[%emt 0:06:48]} 20. Ne3 {[%emt 0:00:00]} Nh5 {
[%emt 0:01:46]} 21. Nd5 {[%emt 0:09:45]} Bxd5 {[%emt 0:04:31]} 22. exd5 {
[%emt 0:00:05]} Nxg3 {[%emt 0:00:14]} 23. fxg3 {[%emt 0:00:04]} Bg7 {[%emt 0:
01:01]} (23... c4 $5 {[%cal Ra8d8]}) 24. g4 $1 {[%emt 0:01:30]} Rad8 {[%emt 0:
00:56]} 25. Qf3 {[%emt 0:01:38]} Nb7 {[%emt 0:01:06]} 26. Ne4 {[%emt 0:00:00]}
Nd6 {[%emt 0:00:15]} (26... Rf8 {is interesting.} 27. Rf1 c4 28. cxb4 Qb6+) 27.
Nxd6 {[%emt 0:00:36]} Qxd6 {[%emt 0:00:24]} 28. c4 $2 {[%emt 0:00:38]} (28. Be4
$11) 28... e4 $1 $19 {[%emt 0:01:07]} 29. Rxe4 {[%emt 0:00:09]} Rxe4 {[%emt 0:
00:41]} 30. Bxe4 {[%emt 0:01:20]} Bxb2 {[%emt 0:00:08]} ({Worse is} 30... Bd4+
31. Kh1 $17) 31. Rf1 {[%emt 0:00:05] [#]} Rd7 {[%emt 0:01:13] Active counter
play!} (31... Bd4+ $1 $19 32. Kh1 Rd7) 32. h4 {[%emt 0:00:11]} Bd4+ {[%emt 0:
00:51]} 33. Kh1 {[%emt 0:00:02]} Qe7 {[%emt 0:00:57]} (33... Kg7 {feels hotter.
} 34. g3 Re7 35. Kg2 Qe5) 34. g3 {[%emt 0:00:30]} Rd6 {[%emt 0:00:00] White
must now prevent ...Rf6.} (34... b3 {is more complex.} 35. h5 Kg7 36. Kg2 b2)
35. Qd3 {[%emt 0:02:32]} Rf6 {[%emt 0:00:47]} (35... b3 {looks sharper.} 36. h5
Kg7 37. hxg6 fxg6 38. Kg2 Qe8) 36. Rxf6 {[%emt 0:00:22]} Qxf6 $17 {[%emt 0:00:
05] Endgame KQB-KQB} 37. Bf3 {[%emt 0:00:45]} Qe5 {[%emt 0:00:42]} 38. Kg2 {
[%emt 0:00:21]} Kg7 {[%emt 0:01:01]} 39. Qe4 {[%emt 0:00:00]} b3 {[%emt 0:00:
29]} 40. Qxe5+ {[%emt 0:00:14]} Bxe5 {[%emt 0:00:05] KB-KB} 41. Bd1 {[%emt 0:
31:03]} b2 {[%emt 0:30:13]} 42. Bc2 {[%emt 0:00:03]} Kf6 {[%emt 0:00:00]} 43.
Kf3 {[%emt 0:00:00]} Bc7 {[%emt 0:00:00]} 44. h5 {[%emt 0:00:00]} ({Better is} 
44. Bb1) 44... Kg5 {[%emt 0:00:00]} 45. hxg6 {[%emt 0:00:00]} fxg6 {[%emt 0:00:
00]} 46. Bb1 {[%emt 0:00:00]} Kf6 {[%emt 0:00:00]} 47. Bc2 {[%emt 0:00:00]} Ke5
{[%emt 0:00:00]} ({Black should try} 47... Bb8 48. Bb1 Bc7) 48. Ke3 {[%emt 0:
00:00]} h5 {[%emt 0:00:00]} 49. g5 {[%emt 0:00:00]} Bd8 {[%emt 0:00:00]} 50.
Bxg6 $2 {[%emt 0:00:00]} (50. Kd2 $15) 50... Bxg5+ $19 {[%emt 0:00:00] Black
is clearly winning.} 51. Ke2 {[%emt 0:00:00]} Kd4 {[%emt 0:00:00]} 52. Kd1 {
[%emt 0:00:00] [#]} Kc3 $1 {[%emt 0:00:00]} 53. d6 {[%emt 0:00:00] Against Be7}
Kb3 {[%emt 0:00:18]} 54. Bb1 {[%emt 0:00:00]} a5 {[%emt 0:01:41]} 55. d7 {
[%emt 0:00:00]} Bf6 {[%emt 0:00:00]} 56. Kd2 {[%emt 0:00:04]} Kxa4 {[%emt 0:00:
30] Weighted Error Value: White=0.61/Black=0.11 (very precise)} 0-1

[Event "44th Chess Olympiad Women 2022"]
[Site "Chennai"]
[Date "2022.08.01"]
[Round "4.6"]
[White "Balajayeva, Khanim"]
[Black "Belenkaya, Dina"]
[Result "1-0"]
[WhiteElo "2344"]
[BlackElo "2256"]
[Annotator "TA"]
[PlyCount "135"]
[EventDate "2022.??.??"]
[TimeControl "60"]

{[%evp 11,135,23,34,33,33,38,29,35,32,27,51,31,27,43,31,31,52,0,8,0,0,0,0,-39,
-37,-27,58,59,88,38,61,25,12,-53,50,47,38,37,64,33,62,78,118,120,252,272,278,
226,501,509,572,520,589,569,643,0,613,567,565,558,532,511,494,473,567,554,596,
388,398,345,270,224,227,187,185,67,58,0,58,-16,0,0,21,21,27,0,0,0,4,7,23,24,58,
20,0,0,7,7,440,418,423,430,409,418,423,407,531,521,824,716,827,827,822,807,800,
735,720,720,713,707,819,809,801,788,725,702]} 1. e4 {[%emt 0:00:02]} c6 {
[%emt 0:00:02]} 2. d4 {[%emt 0:00:05]} d5 {[%emt 0:00:04]} 3. exd5 {[%emt 0:00:
00]} cxd5 {[%emt 0:00:05]} 4. Bd3 {[%emt 0:00:11]} Nc6 {[%emt 0:00:55]} 5. c3 {
[%emt 0:00:09]} Qc7 {[%emt 0:02:17]} 6. h3 {[%emt 0:00:30]} g6 {[%emt 0:00:54]}
7. Ne2 {[%emt 0:01:23] B13: Caro-Kann: Exchange Variation and Panov-Botvinnik
Attack.} Bf5 {[%emt 0:06:29]} 8. Bxf5 {[%emt 0:03:09]} gxf5 {[%emt 0:00:02]} 9.
Bf4 {[%emt 0:00:06] White has an edge.} Qd7 {[%emt 0:05:01]} 10. Nd2 {[%emt 0:
00:00]} Nf6 {[%emt 0:02:57]} 11. Nc1 {[%emt 0:15:40]} Rg8 {[%emt 0:01:42]} 12.
Qf3 {[%emt 0:11:08] [#]} Ne4 $146 {[%emt 0:03:45]} ({Predecessor:} 12... Qe6+
13. Ne2 Ne4 14. O-O Qg6 15. Nxe4 dxe4 16. Qg3 f6 17. Rfd1 e5 18. dxe5 fxe5 19.
Qxg6+ hxg6 {0-1 (41) Del Rio Perezagua,M (2014)-Gines Esteo,P (2439) Linares
2021}) 13. Nd3 {[%emt 0:00:57]} Rg6 {[%emt 0:13:32]} 14. O-O-O {[%emt 0:07:23]}
b5 {[%emt 0:00:00][%cal Yb7b5,Yb5b4]} 15. Nb3 {[%emt 0:09:53]} a5 {[%emt 0:09:
48]} 16. Nbc5 {[%emt 0:08:06]} Qc8 {[%emt 0:02:26]} 17. Qe3 {[%emt 0:02:36]} b4
$1 {[%emt 0:03:39]} 18. f3 $1 {[%emt 0:01:19] [#]} Nd6 {[%emt 0:04:09]} (18...
Nxc5 19. Nxc5 bxc3 20. bxc3 $11) (18... bxc3 $1 $11 19. fxe4 fxe4) 19. Bxd6 $14
{[%emt 0:04:24]} Rxd6 {[%emt 0:00:04]} 20. Rhe1 {[%emt 0:01:45] White is more
active.} (20. Kb1 $16) 20... Rb8 {[%emt 0:04:56][%cal Yf5f4]} 21. Re2 {[%emt 0:
00:32]} a4 {[%emt 0:08:44]} 22. Kd2 {[%emt 0:00:00]} (22. f4 $11) 22... Na5 {
[%emt 0:04:25]} (22... a3 $1 $15 23. bxa3 bxc3+ 24. Ke1 Rg6) 23. Ke1 $36 {
[%emt 0:00:11] White has some pressure.} bxc3 $1 {[%emt 0:04:18]} 24. bxc3 {
[%emt 0:00:08]} Nc4 {[%emt 0:00:22]} 25. Qf4 {[%emt 0:04:32]} (25. Qf2 $5 {
[%cal Rf2h4]}) 25... a3 {[%emt 0:02:07]} 26. Kf1 {[%emt 0:02:17]} Rdb6 {
[%emt 0:09:39] [#]} 27. Nb4 $1 {[%emt 0:03:16]} Rd6 {[%emt 0:03:02]} (27... e6
$16) 28. Rde1 $18 {[%emt 0:00:32]} Rbb6 {[%emt 0:00:00]} 29. Qg5 {[%emt 0:00:
47][%cal Re2e7]} Qd8 {[%emt 0:05:59]} (29... e5 {keeps fighting.} 30. Qg8 (30.
dxe5 Rg6 $17) (30. Rxe5+ Nxe5 31. Rxe5+ Re6 $16) 30... e4) 30. Qxf5 {[%emt 0:
01:13]} h6 {[%emt 0:00:15]} 31. Qh5 {[%emt 0:01:26]} Qa8 {[%emt 0:01:36]} 32.
Ne6 {[%emt 0:01:45] Pair of Knights!} Rd7 {[%emt 0:00:00] Inhibits Nc7+.} 33.
Nc5 $2 {[%emt 0:02:36]} (33. Kg1 $18) 33... Rd8 $2 {[%emt 0:00:25]} (33... Rdd6
$11 34. Kf2 Rd8) 34. Kg1 {[%emt 0:00:50]} Rg6 {[%emt 0:00:38]} 35. h4 {[%emt 0:
04:13][%cal Yh3h4,Yh4h5]} Rdd6 {[%emt 0:00:42]} 36. Qf5 {[%emt 0:00:35]} Nb6 {
[%emt 0:00:25]} 37. h5 {[%emt 0:00:00]} Rg5 {[%emt 0:00:52]} 38. Qh7 {[%emt 0:
00:29][%cal Ye2e7] Threatening mate with Rxe7+!} Nd7 {[%emt 0:00:23]} 39. Nxd7
{[%emt 0:00:53]} Rxd7 {[%emt 0:00:00]} 40. Nd3 {[%emt 0:00:40]} Rg7 {[%emt 0:
01:00]} 41. Qf5 {[%emt 0:01:55] Nc5 is the strong threat.} e6 {[%emt 0:19:23]}
42. Qf4 {[%emt 0:00:32]} Rb7 {[%emt 0:01:50]} 43. Nf2 {[%emt 0:12:44]} (43.
Qxh6 $18 {Strongly threatening Qh8.} Qd8 44. Qc1) 43... Qb8 $14 {[%emt 0:02:04]
} 44. Qc1 {[%emt 0:00:41]} (44. Qxb8+ $14 Rxb8 45. g4) 44... Rg5 {[%emt 0:02:
47]} (44... Qg3 $11 45. Ng4 Rxg4 46. fxg4 Bd6) 45. Ng4 {[%emt 0:01:49]} ({
Better is} 45. f4 $1 $14 Rxh5 46. g3) 45... Be7 {[%emt 0:00:59]} 46. Qc2 {
[%emt 0:05:55] aiming for Qh7.} Rxh5 {[%emt 0:03:42]} 47. Qh7 {[%emt 0:00:13]}
Qf4 {[%emt 0:02:34]} 48. Qh8+ {[%emt 0:01:48]} Kd7 {[%emt 0:00:07]} 49. Re5 {
[%emt 0:03:39]} Rh4 {[%emt 0:00:00]} 50. Qa8 {[%emt 0:00:57]} Kc7 {[%emt 0:00:
19] [#]} 51. Rxd5 $1 {[%emt 0:00:00]} Bd6 $1 {[%emt 0:00:01]} 52. Qa5+ {
[%emt 0:00:34]} (52. Rxd6 $5 Qxd6 53. Qe8 $16) 52... Kc8 {[%emt 0:00:43]} 53.
Rb5 {[%emt 0:03:06] Dancing on a razor blade.} ({But not} 53. Qa8+ $6 Kc7 $16)
53... Rxb5 {[%emt 0:01:07]} 54. Qxb5 {[%emt 0:00:02]} Rxg4 $4 {[%emt 0:00:19]}
(54... Kd8 $1 $11 {and Black has nothing to worry.}) 55. Qc6+ $18 {[%emt 0:00:
25]} (55. fxg4 Qh2+ 56. Kf1 Qh1+ 57. Ke2 (57. Kf2 Bg3+ 58. Kxg3 Qxe1+ 59. Kh2
Qh4+ 60. Kg1 Qe1+ 61. Kh2 Qh4+ 62. Kg1 Qe1+ 63. Kh2 $11) 57... Qxg2+ 58. Kd1
Qxg4+ 59. Kc2 Kd8 $16) 55... Kd8 {[%emt 0:00:21] ( -> ...Qh2+)} 56. fxg4 {
[%emt 0:00:05] Endgame KQR-KQB} ({Less strong is} 56. Qa8+ Ke7 57. fxg4 Qg3 $18
) 56... Qh2+ {[%emt 0:00:00]} 57. Kf1 {[%emt 0:00:04]} Bg3 {[%emt 0:00:23]
Threatens to win with ... Qh1+.} 58. Rd1 {[%emt 0:00:30]} Bh4 {[%emt 0:00:14]}
59. Qf3 {[%emt 0:00:39] White is clearly winning.} Qc7 {[%emt 0:00:47]} 60. Kg1
{[%emt 0:00:12]} Bg5 {[%emt 0:00:18]} 61. Rb1 {[%emt 0:00:39] Hoping for Qa8+.}
Ke8 {[%emt 0:01:03]} 62. Qa8+ {[%emt 0:00:33]} Bd8 {[%emt 0:00:03]} 63. Rb8 {
[%emt 0:01:39]} Qd6 {[%emt 0:00:56]} 64. Qa4+ {[%emt 0:01:31]} Ke7 {[%emt 0:00:
18]} 65. Qb4 {[%emt 0:00:48]} Bc7 {[%emt 0:00:29]} 66. Qxd6+ {[%emt 0:00:20]}
Bxd6 {[%emt 0:00:00]} 67. Rb5 {[%emt 0:00:06]} Bf4 {[%emt 0:00:02]} 68. Kf2 {
[%emt 0:00:14] Weighted Error Value: White=0.28 (precise) /Black=0.55} 1-0